Cogmind - Beta 14 @@@ ROGUE MODE // 2024.12.08 @ 03:28:31 Player: Ayre223 Result: Destroyed by H-88 Terminator with KE Penetrator Performance ------------- Evolutions (9) 4500 Regions Visited (19) 3800 Robots Destroyed (42) 210 Value Destroyed (856) 856 Prototype IDs (36) 720 Alien Tech Used (1) 200 Bonus (3167) 3167 TOTAL SCORE: 13453 Bonus ------- Triggered Max Security 2000 High Alert Combat Kills 27 Follower Combat Kills 40 Entered DSFs 500 Aligned with FarCom 300 Met Data Miner 300 Cogmind --------- Core Integrity 0/1600 Matter 23/300 Energy 99/100 System Corruption 0% Temperature Cool (0) Movement Core (50) Location -1/Access Parts ------- > --- POWER (3) -------- (None) > --- PROPULSION (9) --- (None) > --- UTILITY (10) ----- Advanced Terrain Scan Processor Improved Utility Shielding > --- WEAPON (3) ------- (None) > --- INVENTORY (5) ---- Compact Particle Reactor Experimental Thermal Generator Experimental Core Analyzer Peak State ------------ > --- POWER ------------ Antimatter Reactor Light Quantum Reactor > --- PROPULSION ------- Field Propulsion Drive Field Propulsion Drive Cooled Nuclear Pulse Thruster Impulse Thruster Array Impulse Thruster Array > --- UTILITY ---------- Improved Thermal Generator Improved Terrain Scanner Advanced Terrain Scan Processor Improved Utility Shielding Improved Utility Shielding Focal Shield Improved Shock Absorption System Improved Hacking Suite System Shield > --- WEAPON ----------- Powered Hammer > --- INVENTORY -------- Improved Linear Gravjet Experimental Thermal Generator Experimental Core Analyzer Improved Utility Shielding Focal Shield [Rating: 111] Favorites ----------- Power Ion Engine Engine Ion Engine Power Core Fusion Compressor Reactor Antimatter Reactor Propulsion Light Treads Treads Light Treads Leg Myomer Leg Hover Unit Cooled Antigrav System Flight Unit Flight Unit Utility Improved Hacking Suite Device ECM Suite Storage Medium Storage Unit Processor Visual Processing Unit Hackware Improved Hacking Suite Protection Improved Utility Shielding Weapon Light Assault Rifle Energy Gun Small Laser Ballistic Gun Light Assault Rifle Launcher Grenade Launcher Special Weapon Field Lobotomy Kit Impact Weapon Power Maul Slashing Weapon Great Axe Build | -11 -10 -10 -10 -9 -8 -7 -6 -6 -6 -6 -5 -5 -4 -4 -3 -2 -2 -2 -1 ------- Run | Yrd Mat Min Exi Min Mat Fac Fac Low Low Dat Pro Fac Fac DSF Res Res Qua Sec Acc Slots Evolved 18 | . . . . . 4 2 2 . . . . 2 2 . 2 2 . . 2 Power 2 | . . . . . . . 1 . . . . . . . 1 . . . . Propulsion 7 | . . . . . 2 1 . . . . . 1 1 . . 1 . . 1 Utility 8 | . . . . . 2 1 1 . . . . 1 1 . 1 1 . . . Weapon 1 | . . . . . . . . . . . . . . . . . . . 1 Parts Attached 98 | 5 9 . . 4 22 9 8 . . 1 4 1 3 . 14 16 1 . 1 Power 19 | 1 1 . . 1 5 3 2 . . . 2 . . . 1 3 . . . Engine 13 | 1 1 . . 1 5 3 1 . . . 1 . . . . . . . . Core 2 | . . . . . . . 1 . . . 1 . . . . . . . . Reactor 4 | . . . . . . . . . . . . . . . 1 3 . . . Propulsion 30 | 2 2 . . 1 8 1 1 . . . . . 3 . 7 4 . . 1 Treads 8 | 2 2 . . 1 1 . 1 . . . . . . . . 1 . . . Leg 1 | . . . . . . . . . . . . . . . 1 . . . . Wheel . | . . . . . . . . . . . . . . . . . . . . Hover 1 | . . . . . . . . . . . . . . . . . . . 1 Flight 20 | . . . . . 7 1 . . . . . . 3 . 6 3 . . . Utility 30 | . 3 . . . 3 3 4 . . 1 . 1 . . 5 9 1 . . Device 17 | . 1 . . . 2 2 2 . . 1 . . . . 4 5 . . . Storage 2 | . 2 . . . . . . . . . . . . . . . . . . Processor 3 | . . . . . . 1 1 . . . . . . . . 1 . . . Hackware 4 | . . . . . 1 . 1 . . . . 1 . . 1 . . . . Protection 4 | . . . . . . . . . . . . . . . . 3 1 . . Artifact . | . . . . . . . . . . . . . . . . . . . . Weapon 19 | 2 3 . . 2 6 2 1 . . . 2 . . . 1 . . . . Energy Gun 1 | 1 . . . . . . . . . . . . . . . . . . . Energy Cannon . | . . . . . . . . . . . . . . . . . . . . Ballistic Gun 4 | 1 3 . . . . . . . . . . . . . . . . . . Ballistic Cannon . | . . . . . . . . . . . . . . . . . . . . Launcher 8 | . . . . 2 4 1 . . . . 1 . . . . . . . . Special Weapon 2 | . . . . . 1 . . . . . 1 . . . . . . . . Impact Weapon 3 | . . . . . 1 . 1 . . . . . . . 1 . . . . Slashing Weapon 1 | . . . . . . 1 . . . . . . . . . . . . . Piercing Weapon . | . . . . . . . . . . . . . . . . . . . . Special Melee Weapon . | . . . . . . . . . . . . . . . . . . . . Unidentified Prototypes 4 | . . . . . . . . . . . . . 1 . . 1 . . 2 Parts Lost 48 | . . . . . 10 4 . . 1 . 11 1 . 2 1 11 2 3 2 Power 9 | . . . . . 2 1 . . . . 3 . . . . 2 1 . . Propulsion 18 | . . . . . 4 2 . . . . 2 . . 1 1 4 1 2 1 Utility 16 | . . . . . 3 . . . 1 . 3 1 . 1 . 5 . 1 1 Weapon 5 | . . . . . 1 1 . . . . 3 . . . . . . . . Highest Loss Streak 10 | . . . . . 4 3 . . 1 . 6 1 . 2 1 10 2 3 2 To Critical Strikes 1 | . . . . . . . . . . . . . . . . 1 . . . Average Slot Usage (%) 63 | . 92 100 100 100 63 42 58 66 66 66 47 20 16 24 53 53 43 35 9 Engine 7 | . 14 14 14 14 8 6 4 6 6 6 2 . . . . . . . . Treads 10 | . 28 28 28 28 7 . . 6 6 6 4 . . . . . . . . Flight 9 | . . . . . 23 9 6 6 6 6 2 . 1 11 25 16 10 6 . Device 10 | . 7 14 14 14 10 7 20 20 20 20 12 3 . . 14 11 13 11 . Storage 4 | . 13 14 14 14 1 . . . . . . . . . . . . . . Processor 3 | . . . . . . 7 12 13 13 13 10 5 5 4 . 3 4 4 4 Hackware 3 | . . . . . 1 . 3 6 6 6 6 10 10 8 8 8 8 7 1 Ballistic Gun 6 | . 26 28 28 7 . . . . . . . . . . . . . . . Launcher 3 | . . . . 20 8 5 . . . . . . . . . . . . . Impact Weapon 1 | . . . . . 1 . 3 6 6 6 5 . . . . 2 . . . Peak Build Rating 111 | 5 8 7 8 10 14 20 42 42 42 43 43 17 33 34 89 111 76 51 20 Average Rating 25 | 4 6 7 7 9 9 13 35 42 42 43 30 15 14 26 72 82 64 45 11 On Entrance 26 | . 5 7 7 8 10 6 20 42 42 38 43 12 12 33 14 89 72 51 13 Naked Turns . | . . . . . . . . . . . . . . . . . . . . Heaviest Build 41 | 7 22 19 19 28 30 13 14 14 14 14 16 1 . . 31 41 23 8 2 Greatest Support 63 | 40 40 40 40 43 63 17 14 14 14 14 37 3 12 18 53 52 34 15 3 Greatest Overweight (x) 2 | . . . . . 1 1 . . . . 1 . . . . . 2 2 . Average Overweight (x) . | . . . . . . . . . . . . . . . . . . . . Largest Inventory Capacity 10 | 5 10 10 10 10 10 5 5 5 5 5 5 5 5 5 5 5 5 5 5 Average Capacity 6 | 5 8 10 10 10 5 5 5 5 5 5 5 5 5 5 5 5 5 5 5 Most Carried 10 | 5 10 9 10 10 9 5 5 5 5 4 4 1 3 4 5 5 4 4 5 Average Carried 5 | 2 8 9 9 8 5 4 4 5 5 4 1 . . 1 2 4 3 4 3 Final Capacity 10 | 5 10 10 10 10 5 5 5 5 5 5 5 5 5 5 5 5 5 5 5 Final Carried 10 | 3 9 9 10 9 5 4 5 5 5 4 . . . 4 2 4 4 4 3 Class Distribution -------------------- 50% | Mutant 24% | Scavenger-Mutant 9% | Hacker-Mutant 6% | Hacker-Sprinter 5% | Hacker-Scout Dominant Class ---------------- Scavenger-Mutant | -10/Materials Scavenger-Mutant | -10/Mines Scavenger-Mutant | -10/Exiles Mutant | -9/Mines Mutant | -8/Materials Scavenger-Mutant | -7/Factory Mutant | -6/Factory Mutant | -6/Lower Caves Mutant | -6/Lower Caves Mutant | -6/Data Miner Mutant | -5/Proximity Caves Hacker-Mutant | -5/Factory Hacker-Mutant | -4/Factory Hacker-Sprinter | -4/DSF Hacker-Sprinter | -3/Research Hacker-Mutant | -2/Research Hacker-Mutant | -2/Quarantine Hacker-Mutant | -2/Section 7 Mutant | -1/Access Resources | -11 -10 -10 -10 -9 -8 -7 -6 -6 -6 -6 -5 -5 -4 -4 -3 -2 -2 -2 -1 ----------- Run | Yrd Mat Min Exi Min Mat Fac Fac Low Low Dat Pro Fac Fac DSF Res Res Qua Sec Acc Matter Collected 1156 | 245 189 . . 60 202 197 89 34 . . 64 . . . . 51 . . 25 Remotely . | . . . . . . . . . . . . . . . . . . . . Salvage Created 726 | . 492 . . 16 163 28 . . . . 27 . . . . . . . . Parts 57 | . 37 . . 5 15 . . . . . . . . . . . . . . Haulers Intercepted 1 | . 1 . . . . . . . . . . . . . . . . . . Recyclers Shooed . | . . . . . . . . . . . . . . . . . . . . Parts Field Recycled . | . . . . . . . . . . . . . . . . . . . . Retrieved Matter . | . . . . . . . . . . . . . . . . . . . . Parts Self-Destructed . | . . . . . . . . . . . . . . . . . . . . Prevented . | . . . . . . . . . . . . . . . . . . . . Kills | -11 -10 -10 -10 -9 -8 -7 -6 -6 -6 -6 -5 -5 -4 -4 -3 -2 -2 -2 -1 ------- Run | Yrd Mat Min Exi Min Mat Fac Fac Low Low Dat Pro Fac Fac DSF Res Res Qua Sec Acc Combat Hostiles Destroyed 36 | . 18 . . 4 13 . . . . . 1 . . . . . . . . Guns 18 | . 18 . . . . . . . . . . . . . . . . . . AOE 17 | . . . . 4 13 . . . . . . . . . . . . . . Classes Destroyed 8 | . 4 . . . 4 . . . . . . . . . . . . . . Worker 3 | . . . . . 2 1 . . . . . . . . . . . . . Hauler 1 | . 1 . . . . . . . . . . . . . . . . . . Operator 1 | . 1 . . . . . . . . . . . . . . . . . . Watcher 1 | . . . . . 1 . . . . . . . . . . . . . . Swarmer 23 | . 12 . . 4 6 . . . . . 1 . . . . . . . . Grunt 11 | . 6 . . . 5 . . . . . . . . . . . . . . Brawler 1 | . . . . . 1 . . . . . . . . . . . . . . Sentry 1 | . . . . . 1 . . . . . . . . . . . . . . Best Kill Streak 5 | . 5 . . 4 4 1 . . . . 1 . . . . . . . . Combat Bots Only 5 | . 5 . . 4 4 . . . . . 1 . . . . . . . . Max Kills in Single Turn 4 | . 2 . . 4 4 1 . . . . 1 . . . . . . . . Gunslinging 1 | . 1 . . . . . . . . . . . . . . . . . . Exploded 4 | . . . . 4 4 . . . . . . . . . . . . . . Melee . | . . . . . . . . . . . . . . . . . . . . Uniques/NPCs Destroyed . | . . . . . . . . . . . . . . . . . . . . Combat | -11 -10 -10 -10 -9 -8 -7 -6 -6 -6 -6 -5 -5 -4 -4 -3 -2 -2 -2 -1 -------- Run | Yrd Mat Min Exi Min Mat Fac Fac Low Low Dat Pro Fac Fac DSF Res Res Qua Sec Acc Hostile Shots Fired 858 | . 96 . . 1 60 65 . . 6 . 120 40 . 112 46 107 19 47 139 Missed 377 | . 19 . . . 26 33 . . 4 . 54 11 . 70 29 53 13 17 48 Damage Taken 8678 | . 670 . . 10 882 429 . . 31 . 1220 442 . 743 356 1273 166 716 1740 Core 4728 | . 137 . . . 183 230 . . . . 524 413 . 558 65 481 46 522 1569 Absorbed by Shields 113 | . . . . . . . . . . . . . . 104 9 . . . . Redirected to Shielding 264 | . . . . . . . . . . . . . . . . 189 . 62 13 Ignored by Resistances 102 | . . . . . . . . . . . . . . . 6 76 20 . . Core Remaining (%) 60 | 100 . . . 45 66 67 . . . . 38 58 . 51 95 . . 27 . Volleys Fired 78 | . 51 . . 1 24 . . . . . 2 . . . . . . . . Largest 2 | . 2 . . 2 1 . . . . . 1 . . . . . . . . Hottest 60 | . 60 . . 60 36 . . . . . . . . . . . . . . Shots Fired 129 | . 102 . . 2 23 . . . . . 2 . . . . . . . . Gun 102 | . 102 . . . . . . . . . . . . . . . . . . Cannon . | . . . . . . . . . . . . . . . . . . . . Launcher 24 | . . . . 2 22 . . . . . . . . . . . . . . Special 3 | . . . . . 1 . . . . . 2 . . . . . . . . Kinetic 94 | . 94 . . . . . . . . . . . . . . . . . . Thermal 8 | . 8 . . . . . . . . . . . . . . . . . . Explosive 24 | . . . . 2 22 . . . . . . . . . . . . . . Electromagnetic . | . . . . . . . . . . . . . . . . . . . . Robot Hit Streak 14 | . 14 . . 2 7 . . . . . . . . . . . . . . Robot Miss Streak 3 | . 3 . . . 1 . . . . . 2 . . . . . . . . Penetration Max . | . . . . . . . . . . . . . . . . . . . . Secondary Targets 5 | . 5 . . . . . . . . . . . . . . . . . . Max Gunslinging Chain 1 | . 1 . . . . . . . . . . . . . . . . . . Shots Hit Robots 91 | . 69 . . 1 19 1 . . . . 1 . . . . . . . . Core Hits 63 | . 34 . . 4 24 1 . . . . . . . . . . . . . Critical Kills . | . . . . . . . . . . . . . . . . . . . . Critical Parts Destroyed 2 | . . . . . 1 . . . . . 1 . . . . . . . . Critical Strikes 2 | . . . . . 1 . . . . . 1 . . . . . . . . Smash 2 | . . . . . 1 . . . . . 1 . . . . . . . . Melee Attacks 23 | . . . . . 8 7 . . . . 5 . . . . 3 . . . Impact 16 | . . . . . 8 . . . . . 5 . . . . 3 . . . Slashing 7 | . . . . . . 7 . . . . . . . . . . . . . Piercing . | . . . . . . . . . . . . . . . . . . . . Sneak Attacks 3 | . . . . . 2 1 . . . . . . . . . . . . . Combat Hostiles . | . . . . . . . . . . . . . . . . . . . . Follow-up Attacks . | . . . . . . . . . . . . . . . . . . . . Damage Inflicted 2523 | . 560 . . 158 1662 97 . . . . 46 . . . . . . . . Guns 560 | . 560 . . . . . . . . . . . . . . . . . . Cannons . | . . . . . . . . . . . . . . . . . . . . Explosions 1719 | . . . . 158 1561 . . . . . . . . . . . . . . Melee 244 | . . . . . 101 97 . . . . 46 . . . . . . . . Ramming . | . . . . . . . . . . . . . . . . . . . . Kinetic 495 | . 495 . . . . . . . . . . . . . . . . . . Thermal 65 | . 65 . . . . . . . . . . . . . . . . . . Explosive 1719 | . . . . 158 1561 . . . . . . . . . . . . . . Electromagnetic . | . . . . . . . . . . . . . . . . . . . . Impact 147 | . . . . . 101 . . . . . 46 . . . . . . . . Slashing 97 | . . . . . . 97 . . . . . . . . . . . . . Piercing . | . . . . . . . . . . . . . . . . . . . . Highest Corruption 14 | . . . . . 10 2 . . . . 2 . . . 3 13 14 14 . Average Corruption 9 | . . . . . 10 1 . . . . 2 . . . 1 13 13 14 . Corruption Purged . | . . . . . . . . . . . . . . . . . . . . Corruption Blocked . | . . . . . . . . . . . . . . . . . . . . Effects 34 | . . . . . 10 3 . . . . 1 . . . 1 9 6 4 . Message Errors 9 | . . . . . 2 1 . . . . . . . . 1 1 2 2 . Matter Fused 10 | . . . . . 4 1 . . . . . . . . . 1 2 2 . Heat Flow Errors 1 | . . . . . 1 . . . . . . . . . . . . . . Energy Discharges 3 | . . . . . . . . . . . 1 . . . . 2 . . . Parts Rejected 2 | . . . . . . . . . . . . . . . . 2 . . . Parts Fused 1 | . . . . . . 1 . . . . . . . . . . . . . Data Loss (minor) 4 | . . . . . 1 . . . . . . . . . . 2 1 . . Data Loss (major) 1 | . . . . . . . . . . . . . . . . 1 . . . Alerts 1 | . . . . . 1 . . . . . . . . . . . . . . Misdirections 1 | . . . . . . . . . . . . . . . . . 1 . . Weapon Failures 1 | . . . . . 1 . . . . . . . . . . . . . . Overload Shots . | . . . . . . . . . . . . . . . . . . . . Overflow Damage 210 | . . . . 16 148 . . . . . 46 . . . . . . . . Projectiles . | . . . . . . . . . . . . . . . . . . . . Explosions 103 | . . . . 16 87 . . . . . . . . . . . . . . Melee 107 | . . . . . 61 . . . . . 46 . . . . . . . . Knockbacks . | . . . . . . . . . . . . . . . . . . . . Impact . | . . . . . . . . . . . . . . . . . . . . Kinetic . | . . . . . . . . . . . . . . . . . . . . Secondary . | . . . . . . . . . . . . . . . . . . . . Self-Inflicted Damage 27 | . . . . . 27 . . . . . . . . . . . . . . Shots 2 | . . . . . 2 . . . . . . . . . . . . . . Rammed . | . . . . . . . . . . . . . . . . . . . . Targets Rammed . | . . . . . . . . . . . . . . . . . . . . Kicked . | . . . . . . . . . . . . . . . . . . . . Crushed . | . . . . . . . . . . . . . . . . . . . . Highest Temperature 248 | . 82 . . . 123 . . . . . . . . . 100 . . . 248 Average Temperature 40 | . 21 . . . 32 . . . . . . . . . 58 . . . 144 Received Heat Transfer 771 | . 120 . . . 252 123 . . . . 123 18 . . 27 9 . 63 36 Siege Activations . | . . . . . . . . . . . . . . . . . . . . Robots Corrupted 3 | . . . . . 2 . . . . . 1 . . . . . . . . Combat Hostiles 1 | . . . . . . . . . . . 1 . . . . . . . . Parts Fried 2 | . . . . . 2 . . . . . . . . . . . . . . Impact Corruptions 4 | . . . . . 3 . . . . . 1 . . . . . . . . Robots Melted . | . . . . . . . . . . . . . . . . . . . . Combat Hostiles . | . . . . . . . . . . . . . . . . . . . . Parts Melted 1 | . 1 . . . . . . . . . . . . . . . . . . Heat Transferred 150 | . 150 . . . . . . . . . . . . . . . . . . Parts Sabotaged . | . . . . . . . . . . . . . . . . . . . . Parts Stolen . | . . . . . . . . . . . . . . . . . . . . Parts Stripped . | . . . . . . . . . . . . . . . . . . . . Power Chain Reactions . | . . . . . . . . . . . . . . . . . . . . Alert | -11 -10 -10 -10 -9 -8 -7 -6 -6 -6 -6 -5 -5 -4 -4 -3 -2 -2 -2 -1 ------- Run | Yrd Mat Min Exi Min Mat Fac Fac Low Low Dat Pro Fac Fac DSF Res Res Qua Sec Acc Peak Influence 1745 | . 238 27 . 122 481 224 26 . . . . 480 230 79 260 318 1745 1640 1245 Initial 1100 | . . 27 . . . 209 9 . . . . 384 230 64 33 146 178 1100 1100 Average 218 | . 134 27 . 62 156 108 24 . . . . 421 95 66 58 158 1659 1601 1161 Maximum Alert Level 5 | . 1 . . . 2 1 . . . . . 2 1 . 1 1 5 5 4 Low Security (%) 73 | 100 92 100 . 100 57 57 100 . . . . . 96 100 96 87 . . . Level 1 16 | . 7 . . . 35 42 . . . . . 37 3 . 3 12 . . . Level 2 2 | . . . . . 6 . . . . . . 62 . . . . . . . Level 3 . | . . . . . . . . . . . . . . . . . . . . Level 4 3 | . . . . . . . . . . . . . . . . . . 1 100 Level 5 . | . . . . . . . . . . . . . . . . . . . . High Security . | . . . . . . . . . . . . . . . . . . . . Max Security 4 | . . . . . . . . . . . . . . . . . 99 98 . Squads Dispatched 13 | . 1 . . . 1 1 . . . . . . . 1 3 . 6 . . Investigation 1 | . . . . . . . . . . . . . . . 1 . . . . Extermination 2 | . . . . . . 1 . . . . . . . . 1 . . . . Reinforcement 3 | . 1 . . . 1 . . . . . . . . 1 . . . . . Assault 7 | . . . . . . . . . . . . . . . 1 . 6 . . Garrison . | . . . . . . . . . . . . . . . . . . . . Intercept . | . . . . . . . . . . . . . . . . . . . . Searches Triggered . | . . . . . . . . . . . . . . . . . . . . Data Miner Redirects 1 | . . . . . . . . . . . . . . . 1 . . . . Construction Impeded . | . . . . . . . . . . . . . . . . . . . . Haulers Reinforced . | . . . . . . . . . . . . . . . . . . . . Active Scanning Responses . | . . . . . . . . . . . . . . . . . . . . Cargo Convoy Interrupts . | . . . . . . . . . . . . . . . . . . . . Stealth | -11 -10 -10 -10 -9 -8 -7 -6 -6 -6 -6 -5 -5 -4 -4 -3 -2 -2 -2 -1 --------- Run | Yrd Mat Min Exi Min Mat Fac Fac Low Low Dat Pro Fac Fac DSF Res Res Qua Sec Acc Distress Signals 13 | . 4 . . . 4 . . . . . 1 . . . . . 1 1 2 Communications Jammed . | . . . . . . . . . . . . . . . . . . . . Distress Signals . | . . . . . . . . . . . . . . . . . . . . Times Spotted 217 | . 35 . . 3 33 12 . . 7 . 21 10 . 6 21 17 7 20 25 Peak Tracking Total 19 | . 7 . . . 6 5 . . 3 . 6 5 . 5 11 13 9 19 12 Tactical Retreats 35 | . 3 . . . 3 3 . . 2 . 7 2 . 1 2 5 3 1 3 Traps | -11 -10 -10 -10 -9 -8 -7 -6 -6 -6 -6 -5 -5 -4 -4 -3 -2 -2 -2 -1 ------- Run | Yrd Mat Min Exi Min Mat Fac Fac Low Low Dat Pro Fac Fac DSF Res Res Qua Sec Acc Traps Triggered 10 | . . . . . . . 1 . . . . . . 6 2 . 1 . . Indirectly . | . . . . . . . . . . . . . . . . . . . . Trap Hack Attempts . | . . . . . . . . . . . . . . . . . . . . Triggered . | . . . . . . . . . . . . . . . . . . . . Disarmed 4 | . . . . . . . . . . . . . . . . 4 . . . Reprogrammed . | . . . . . . . . . . . . . . . . . . . . Reused . | . . . . . . . . . . . . . . . . . . . . Traps Extracted . | . . . . . . . . . . . . . . . . . . . . Installed . | . . . . . . . . . . . . . . . . . . . . Triggered 1 | . . . . . . . . . 1 . . . . . . . . . . Machines | -11 -10 -10 -10 -9 -8 -7 -6 -6 -6 -6 -5 -5 -4 -4 -3 -2 -2 -2 -1 ---------- Run | Yrd Mat Min Exi Min Mat Fac Fac Low Low Dat Pro Fac Fac DSF Res Res Qua Sec Acc Machines Disabled 4 | . . . . 1 3 . . . . . . . . . . . . . . Max in Single Turn 1 | . . . . 1 1 . . . . . . . . . . . . . . Garrison Access 4 | . . . . . 1 1 . . . . . . . . 1 1 . . . Machines Repaired . | . . . . . . . . . . . . . . . . . . . . Machines Dismantled . | . . . . . . . . . . . . . . . . . . . . Machines Sabotaged . | . . . . . . . . . . . . . . . . . . . . Overloaded Fab Kills . | . . . . . . . . . . . . . . . . . . . . Hacking | -11 -10 -10 -10 -9 -8 -7 -6 -6 -6 -6 -5 -5 -4 -4 -3 -2 -2 -2 -1 --------- Run | Yrd Mat Min Exi Min Mat Fac Fac Low Low Dat Pro Fac Fac DSF Res Res Qua Sec Acc Machines Accessed 40 | . 6 . 2 . 4 2 4 . . 4 1 1 3 . 7 6 . . . Terminals 29 | . 6 . . . 3 1 3 . . . 1 1 3 . 7 4 . . . Fabricators 1 | . . . . . . . . . . . . . . . . 1 . . . Repair Stations . | . . . . . . . . . . . . . . . . . . . . Recycling Units . | . . . . . . . . . . . . . . . . . . . . Scanalyzers . | . . . . . . . . . . . . . . . . . . . . Garrison Access 4 | . . . . . 1 1 1 . . . . . . . . 1 . . . Total Hacks 110 | . 11 . 17 . 10 4 6 . . 27 1 4 7 . 10 13 . . . Successful 68 | . 4 . 17 . 4 1 2 . . 27 1 2 3 . 4 3 . . . Failed 42 | . 7 . . . 6 3 4 . . . . 2 4 . 6 10 . . . Catastrophic 10 | . 3 . . . . 1 2 . . . . . . . 3 1 . . . Database Lockouts . | . . . . . . . . . . . . . . . . . . . . Manual 17 | . 6 . 1 . . 2 . . . . . 3 3 . 1 1 . . . Terminals 55 | . 11 . . . 8 3 5 . . . 1 4 7 . 10 6 . . . Fabricators 4 | . . . . . . . . . . . . . . . . 4 . . . Repair Stations . | . . . . . . . . . . . . . . . . . . . . Recycling Units . | . . . . . . . . . . . . . . . . . . . . Scanalyzers . | . . . . . . . . . . . . . . . . . . . . Garrison Access 7 | . . . . . 2 1 1 . . . . . . . . 3 . . . Terminal Hacks 64 | . 4 . 17 . 3 . 2 . . 27 1 1 3 . 4 2 . . . Record 32 | . . . 16 . . . 1 . . 11 1 1 1 . . 1 . . . Part Schematic 11 | . . . . . . . . . . 10 . . . . 1 . . . . Robot Schematic 3 | . . . . . . . . . . 3 . . . . . . . . . Prototype ID Bank 3 | . . . . . . . . . . 3 . . . . . . . . . Open DSF 3 | . . . . . . . 1 . . . . . 1 . 1 . . . . Level Access Points 1 | . . . . . 1 . . . . . . . . . . . . . . Alert Level 1 | . . . . . 1 . . . . . . . . . . . . . . Unreport Threat 2 | . . . . . . . . . . . . . 1 . 1 . . . . Locate Traps 2 | . 1 . . . 1 . . . . . . . . . . . . . . Disarm Traps 1 | . . . . . . . . . . . . . . . . 1 . . . Recall Assault 1 | . . . . . . . . . . . . . . . 1 . . . . Registered Components 1 | . 1 . . . . . . . . . . . . . . . . . . Zone Layout 2 | . 2 . . . . . . . . . . . . . . . . . . Derelict Proto ID Bank 1 | . . . 1 . . . . . . . . . . . . . . . . Fabricator Hacks . | . . . . . . . . . . . . . . . . . . . . Repair Station Hacks . | . . . . . . . . . . . . . . . . . . . . Recycling Unit Hacks . | . . . . . . . . . . . . . . . . . . . . Scanalyzer . | . . . . . . . . . . . . . . . . . . . . Garrison Access Hacks 3 | . . . . . 1 1 . . . . . . . . . 1 . . . Seal Access 3 | . . . . . 1 1 . . . . . . . . . 1 . . . Unauthorized Hacks 1 | . . . . . . . . . . . . 1 . . . . . . . Terminals 1 | . . . . . . . . . . . . 1 . . . . . . . Assimilate 1 | . . . . . . . . . . . . 1 . . . . . . . Fabricators . | . . . . . . . . . . . . . . . . . . . . Repair Stations . | . . . . . . . . . . . . . . . . . . . . Recycling Units . | . . . . . . . . . . . . . . . . . . . . Scanalyzers . | . . . . . . . . . . . . . . . . . . . . Garrison Access . | . . . . . . . . . . . . . . . . . . . . Data Cores Recovered 1 | . 1 . . . . . . . . . . . . . . . . . . Used . | . . . . . . . . . . . . . . . . . . . . Hacking Detections 26 | . 5 . . . 3 1 3 . . . 1 . 2 . 6 5 . . . Full Trace Events . | . . . . . . . . . . . . . . . . . . . . Feedback Events . | . . . . . . . . . . . . . . . . . . . . Feedback Blocked . | . . . . . . . . . . . . . . . . . . . . Robot Schematics Acquired 3 | . . . . . . . . . . 3 . . . . . . . . . Robots Built . | . . . . . . . . . . . . . . . . . . . . Authchips . | . . . . . . . . . . . . . . . . . . . . Time . | . . . . . . . . . . . . . . . . . . . . Total Robot Build Rating . | . . . . . . . . . . . . . . . . . . . . Part Schematics Acquired 11 | . . . . . . . . . . 10 . . . . 1 . . . . Parts Built . | . . . . . . . . . . . . . . . . . . . . Authchips . | . . . . . . . . . . . . . . . . . . . . Time . | . . . . . . . . . . . . . . . . . . . . Total Part Build Rating . | . . . . . . . . . . . . . . . . . . . . Parts Repaired . | . . . . . . . . . . . . . . . . . . . . Time . | . . . . . . . . . . . . . . . . . . . . Parts Recycled . | . . . . . . . . . . . . . . . . . . . . Recycled Matter . | . . . . . . . . . . . . . . . . . . . . Retrieved Matter . | . . . . . . . . . . . . . . . . . . . . Retrieved Components . | . . . . . . . . . . . . . . . . . . . . Parts Scanalyzed . | . . . . . . . . . . . . . . . . . . . . Part Schematics Acquired . | . . . . . . . . . . . . . . . . . . . . Parts Damaged . | . . . . . . . . . . . . . . . . . . . . Bothacking | -11 -10 -10 -10 -9 -8 -7 -6 -6 -6 -6 -5 -5 -4 -4 -3 -2 -2 -2 -1 ------------ Run | Yrd Mat Min Exi Min Mat Fac Fac Low Low Dat Pro Fac Fac DSF Res Res Qua Sec Acc Used RIF Installer . | . . . . . . . . . . . . . . . . . . . . Robots Hacked . | . . . . . . . . . . . . . . . . . . . . Non-combat . | . . . . . . . . . . . . . . . . . . . . Combat . | . . . . . . . . . . . . . . . . . . . . Robot Hacks Applied . | . . . . . . . . . . . . . . . . . . . . Relay Couplers Released 2 | . . . . . . . . . . . . . . . 2 . . . . Machine Destruction 2 | . . . . . . . . . . . . . . . 2 . . . . Fabnet Peak Effective % . | . . . . . . . . . . . . . . . . . . . . Robots Rewired . | . . . . . . . . . . . . . . . . . . . . Allies Hacked . | . . . . . . . . . . . . . . . . . . . . Hacks Repelled . | . . . . . . . . . . . . . . . . . . . . Allies | -11 -10 -10 -10 -9 -8 -7 -6 -6 -6 -6 -5 -5 -4 -4 -3 -2 -2 -2 -1 -------- Run | Yrd Mat Min Exi Min Mat Fac Fac Low Low Dat Pro Fac Fac DSF Res Res Qua Sec Acc Total Allies 2 | . . . . . 1 . . . . . . 1 . . . . . . . Largest Group 1 | . . . . . 1 . . . . . . 1 . . . . . . . Highest-Rated Group 90 | . . . . . 90 . . . . . . 26 . . . . . . . Highest-Rated Ally 90 | . . . . . 90 . . . . . . 26 . . . . . . . Total Orders . | . . . . . . . . . . . . . . . . . . . . Ally Attacks 12 | . . . . . 12 . . . . . . . . . . . . . . Total Damage 405 | . . . . . 405 . . . . . . . . . . . . . . Kills 3 | . . . . . 3 . . . . . . . . . . . . . . Allies Corrupted . | . . . . . . . . . . . . . . . . . . . . Allies Melted . | . . . . . . . . . . . . . . . . . . . . Field Lobotomies 1 | . . . . . 1 . . . . . . . . . . . . . . Intel | -11 -10 -10 -10 -9 -8 -7 -6 -6 -6 -6 -5 -5 -4 -4 -3 -2 -2 -2 -1 ------- Run | Yrd Mat Min Exi Min Mat Fac Fac Low Low Dat Pro Fac Fac DSF Res Res Qua Sec Acc Robot Analysis Total . | . . . . . . . . . . . . . . . . . . . . Derelict Logs Recovered 4 | . . . . . . . . 2 . . 2 . . . . . . . . Drone Launches . | . . . . . . . . . . . . . . . . . . . . Drone Recoveries . | . . . . . . . . . . . . . . . . . . . . Exploration | -11 -10 -10 -10 -9 -8 -7 -6 -6 -6 -6 -5 -5 -4 -4 -3 -2 -2 -2 -1 ------------- Run | Yrd Mat Min Exi Min Mat Fac Fac Low Low Dat Pro Fac Fac DSF Res Res Qua Sec Acc Turns Passed 6730 | 60 1211 23 342 468 975 951 230 145 191 47 272 79 153 58 704 367 154 99 201 Spaces Moved 7827 | 37 555 15 214 281 794 1353 555 259 348 83 324 134 249 110 976 752 301 109 378 Core 1209 | 10 . . . . . 232 . . . . 111 134 237 . . . 42 65 378 Treads 1216 | 27 555 15 214 281 77 . . . . . 47 . . . . . . . . Legs . | . . . . . . . . . . . . . . . . . . . . Wheels . | . . . . . . . . . . . . . . . . . . . . Hover . | . . . . . . . . . . . . . . . . . . . . Flight 5402 | . . . . . 717 1121 555 259 348 83 166 . 12 110 976 752 259 44 . Fastest Speed 24 | 50 160 160 160 160 31 35 35 55 55 55 50 50 32 29 24 31 32 37 50 Average Speed 61 | 130 160 160 160 160 58 39 35 55 55 55 76 50 49 31 34 35 50 88 50 Slowest Speed 160 | 160 160 160 160 160 160 100 55 55 55 55 160 50 50 35 45 75 150 150 50 Overloaded Moves 233 | . . . . . . . . . . . . . . . 53 68 71 41 . Propulsion Burnouts . | . . . . . . . . . . . . . . . . . . . . Robots Hopped 23 | . . . . . 2 6 . . . . . . . . 10 5 . . . Cave-ins Triggered 2 | . . . . . 1 . . . . . . . . . . 1 . . . Teleports 1 | . . . . . . . . . . . . . . . . . . . 1 Exploration Rate (%) 40 | 4 84 6 60 57 65 41 16 53 60 72 72 4 4 91 25 21 42 10 15 Regions Visited 19 Branch Regions 9 Pre-discovered Areas 2 | . . . . . . . . . . 1 1 . . . . . . . . Known Exits Taken 6 | . . . . . 1 . 1 1 1 1 . . 1 . . . . . . Unknown Exits Taken 12 | 1 1 1 1 1 . 1 . . . . 1 1 . . 1 1 1 1 . Scrap Searched 3 | . . . . 1 . . . 1 . . 1 . . . . . . . . Spaces Dug 15 | . . . . . 6 6 . . . . . . . . . 3 . . . Terrain Destroyed 122 | . . . . 24 89 6 . . . . . . . . . 3 . . . Melee 15 | . . . . . 6 6 . . . . . . . . . 3 . . . Projectile . | . . . . . . . . . . . . . . . . . . . . AOE 107 | . . . . 24 83 . . . . . . . . . . . . . . Terrain Rammed . | . . . . . . . . . . . . . . . . . . . . Walls Destroyed . | . . . . . . . . . . . . . . . . . . . . Machines Disabled . | . . . . . . . . . . . . . . . . . . . . Actions | -11 -10 -10 -10 -9 -8 -7 -6 -6 -6 -6 -5 -5 -4 -4 -3 -2 -2 -2 -1 --------- Run | Yrd Mat Min Exi Min Mat Fac Fac Low Low Dat Pro Fac Fac DSF Res Res Qua Sec Acc Total 9527 | 49 798 14 214 298 1262 1744 588 261 347 83 334 145 278 132 1335 840 303 112 390 Wait 1378 | . 162 . . 7 394 374 . 3 . . . 10 24 . 339 56 1 1 7 Move 7764 | 36 554 14 213 280 788 1340 554 258 347 82 323 133 248 109 956 743 300 108 378 Hop 20 | . . . . . 2 6 . . . . . . . . 9 3 . . . Pick Up 77 | 8 13 . 1 2 8 7 3 . . . . 1 3 4 12 12 1 . 2 Fast Attach 18 | . 1 . . . 5 . 7 . . . . . . . . 5 . . . Attach 61 | 5 2 . . . 10 7 . . . 1 4 1 3 . 14 11 1 . 2 Detach 5 | . . . . . 3 . . . . . . . . . . 2 . . . Swap 20 | . 6 . . 4 7 2 1 . . . . . . . . . . . . Drop 42 | . 9 . . 4 12 1 5 . . . . . . . 2 5 . 3 1 Fire 78 | . 51 . . 1 24 . . . . . 2 . . . . . . . . Melee 23 | . . . . . 8 7 . . . . 5 . . . . 3 . . . Ram . | . . . . . . . . . . . . . . . . . . . . Kick . | . . . . . . . . . . . . . . . . . . . . Crush . | . . . . . . . . . . . . . . . . . . . . Escape Stasis 41 | . . . . . 1 . 18 . . . . . . 19 3 . . . . Rewire . | . . . . . . . . . . . . . . . . . . . . Trap . | . . . . . . . . . . . . . . . . . . . . Miscellaneous . | . . . . . . . . . . . . . . . . . . . . Route ------- -11/Scrapyard -10/Materials (discovered 4 exits: [*Mat x3] / [*Min]) -10/Mines -10/Exiles -9/Mines -8/Materials (discovered 3 exits: *Fac x3) -7/Factory -6/Factory (discovered 2 exits: *Low / DSF) -6/Lower Caves -6/Lower Caves -6/Data Miner -5/Proximity Caves -5/Factory -4/Factory -4/DSF -3/Research -2/Research -2/Quarantine -2/Section 7 -1/Access History --------- Turn | Location | Event 31 | -11/Scrapyard | Discovered new exit (range 15) 61 | -11/Scrapyard | Entered Materials 222 | -10/Materials | Discovered new exit (range 16) 309 | -10/Materials | Build established: Mutant 756 | -10/Materials | Core integrity fell below 50% 861 | -10/Materials | Discovered new exit (range 3) 864 | -10/Materials | Build established: Scavenger-Mutant 1150 | -10/Materials | Discovered new exit (range 12) 1256 | -10/Materials | Discovered new exit (range 8) 1272 | -10/Materials | Entered Mines 1287 | -10/Mines | Deemed a non-threat by the Exiles lab entrance 1287 | -10/Mines | Discovered new exit (range 5) 1295 | -10/Mines | Entered Exiles 1334 | -10/Exiles | Met 8R-AWN 1361 | -10/Exiles | Met EX-HEX 1407 | -10/Exiles | Met EX-BIN 1427 | -10/Exiles | Aligned with FarCom system 1428 | -10/Exiles | Given EX-Vault access code 1465 | -10/Exiles | Opened EX-Vault 1476 | -10/Exiles | Found Field Lobotomy Kit 1508 | -10/Exiles | Warned to stay clear of 0b10 Research branches 1552 | -10/Exiles | Met EX-DEC 1618 | -10/Exiles | Discovered new exit (range 12) 1637 | -10/Exiles | Left Exiles lab with Field Lobotomy Kit 1637 | -10/Exiles | Entered Mines 1699 | -9/Mines | Met a Derelict bent on vengeance 1956 | -9/Mines | Build established: Mutant 2095 | -9/Mines | Discovered new exit (range 8) 2105 | -9/Mines | Entered Materials 2105 | -8/Materials | Evolved 4 slots: Propulsion x2, Utility x2 2664 | -8/Materials | Identified exit to Factory 2766 | -8/Materials | Crushed by falling debris 2767 | -8/Materials | System corruption reached 10% 2797 | -8/Materials | Lost 3 parts (1n2u) 2926 | -8/Materials | Lost 4 parts (1p2n1w) 2933 | -8/Materials | Assimilated H-61 Shepherd with FLK Orb 3080 | -8/Materials | Entered Factory 3080 | -7/Factory | Evolved 2 slots: Propulsion x1, Utility x1 3349 | -7/Factory | Build established: Scavenger-Mutant 3869 | -7/Factory | Lost 3 parts (1p1n1w) 3901 | -7/Factory | Build established: Mutant 4028 | -7/Factory | Discovered new exit (range 10) 4031 | -7/Factory | Entered another Factory area 4031 | -6/Factory | Evolved 2 slots: Power x1, Utility x1 4130 | -6/Factory | Identified exit to DSF 4240 | -6/Factory | Discovered new exit (range 10) 4243 | -6/Factory | Identified exit to Lower Caves 4261 | -6/Factory | Entered Lower Caves 4264 | -6/Lower Caves | Spotted B-75 Beast 4299 | -6/Lower Caves | Learned Factory terminal intel 4362 | -6/Lower Caves | Identified exit to Lower Caves 4406 | -6/Lower Caves | Entered another Lower Caves area 4492 | -6/Lower Caves | Encountered a Warlord checkpoint 4594 | -6/Lower Caves | Discovered new exit (range 7) 4597 | -6/Lower Caves | Identified exit to Data Miner 4597 | -6/Lower Caves | Entered Data Miner 4598 | -6/Data Miner | Discovered new exit (range 6) 4601 | -6/Data Miner | Identified exit to Proximity Caves 4608 | -6/Data Miner | Met Data Miner 4622 | -6/Data Miner | Learned location of Section 7 (-2) 4622 | -6/Data Miner | Acquired the access code to Warlord's prototype stash 4631 | -6/Data Miner | Received God Mode back door access code from Data Miner 4644 | -6/Data Miner | Entered Proximity Caves 4789 | -5/Proximity Caves | Spotter reported a threat 4796 | -5/Proximity Caves | Lost 6 parts (2p1n2u1w) 4809 | -5/Proximity Caves | Spotter reported a threat 4821 | -5/Proximity Caves | Spotted B-75 Beast 4859 | -5/Proximity Caves | Learned Factory garrison access intel 4871 | -5/Proximity Caves | Lost 4 parts (1p1n1u1w) 4877 | -5/Proximity Caves | Attracted the attention of an 0b10 checkpoint 4885 | -5/Proximity Caves | Learned location of Armory (-3) 4894 | -5/Proximity Caves | Core integrity fell below 50% 4907 | -5/Proximity Caves | Discovered new exit (range 18) 4916 | -5/Proximity Caves | Entered Factory 4916 | -5/Factory | Evolved 2 slots: Propulsion x1, Utility x1 4917 | -5/Factory | Loaded intel: 25 terminal locations 4918 | -5/Factory | Loaded intel: 4 garrison access locations 4986 | -5/Factory | Discovered new exit (range 18) 4995 | -5/Factory | Entered another Factory area 4995 | -4/Factory | Evolved 2 slots: Propulsion x1, Utility x1 5120 | -4/Factory | Identified exit to DSF 5148 | -4/Factory | Entered DSF 5175 | -4/DSF | Additional patrols routed to DSF 5201 | -4/DSF | Discovered new exit (range 15) 5206 | -4/DSF | Entered Research 5206 | -3/Research | Evolved 2 slots: Power x1, Utility x1 5413 | -3/Research | Incoming investigation squad redirected 5607 | -3/Research | Build established: Hacker-Sprinter 5847 | -3/Research | Spotted B-86 Titan 5907 | -3/Research | Discovered new exit (range 13) 5910 | -3/Research | Entered another Research area 5910 | -2/Research | Evolved 2 slots: Propulsion x1, Utility x1 5980 | -2/Research | Found Prototype Processor 5985 | -2/Research | Build established: Hacker-Scout 6080 | -2/Research | Crushed by falling debris 6080 | -2/Research | System corruption reached 10% 6178 | -2/Research | Lost 10 parts (2p4n4u) 6272 | -2/Research | Discovered new exit (range 16) 6277 | -2/Research | Entered Quarantine 6278 | -2/Quarantine | Maximum security lockdown engaged 6282 | -2/Quarantine | Found Alien Artifact 6346 | -2/Quarantine | Spotted Fortress 6393 | -2/Quarantine | Build established: Hacker-Mutant 6422 | -2/Quarantine | Discovered new exit (range 7) 6431 | -2/Quarantine | Entered Section 7 6432 | -2/Section 7 | Maximum security lockdown engaged 6523 | -2/Section 7 | Discovered new exit (range 12) 6524 | -2/Section 7 | Core integrity fell below 50% 6530 | -2/Section 7 | Entered Access 6530 | -1/Access | Evolved 2 slots: Propulsion x1, Weapon x1 6560 | -1/Access | Lost 3 parts (2n1u) 6625 | -1/Access | Spotted B-99 Colossus 6631 | -1/Access | Core integrity fell below 50% 6638 | -1/Access | Identified Transdimensional Reconstructor 6638 | -1/Access | Warped through subspace 6646 | -1/Access | Core integrity fell below 20% 6731 | -1/Access | Destroyed by H-88 Terminator with KE Penetrator Last Messages --------------- 06629_ Faulty Cld. Antigrav System destroyed. 06630_ Knocked back. 06630_ Penetrated by Slug. 06630_ Slug penetrates Wall. 06632_ B-99 Colossus activates siege mode. 06633_ Penetrated by Slug. 06634_ Slug penetrates Wall. 06634_ Acquired 3 matter. 06638_ Identified Transdimensional Reconstructor. [Achievement: Alien Tech] 06638_ Warped through subspace. [Achievement: Subspace Traveler] 06641_ K-01 Serf destroyed. 06643_ Acquired 20 matter. 06645_ Slug penetrates Wall. 06656_ Penetrated by Slug. 06724_ Slug penetrates Wall. 06727_ Penetrated by Slug. 06731_ Slug penetrates Wall. Map ----- +----------------------------------------------------+ | """"" ]# #????????????? | | ?"""" # #????????????? | | ?? # #????????????? | | ?? # #????????????? | | ??###### #????????????? | | ???????# #????????????? | | ???????###########+########## #????????????? | | ????????????# ! #??# #????????????? | | ????????????# #??#n #????????????? | | ????????????# #??# #???########## | | ????????????# #??# #??[[= # | | ????????????# h "" #??# #??[[! # | | ????????????# "" #??# #? [[! # | | ????????????# """""" #??# #? # | | ????????????# """""" *#??# # # | | ????????????# "" #??# #s # | | ????????????# "" #??# /ss # | | ????????????# #??# s# # | | ????????????# #??# # # | | ????????????################# #? # | | ???????????????# [ # #? # | | ???????????????# # #?? !# | | ???????????????# ! # #??########### | | ???????????????# + #????????????? | | ???????????????# # #????????????? | | ???????????????# @ # #????????????? | | ???????????????# * # #?############ | | ???????????????# # h h | | ???????????????# ] # | | ???????????????# # | | ???????????????# # | | ???????????????# # | | ???????????????###+########## | | ?????????????????# | | ?????????????????# ###+########## | | ?????????????????# #????????????# | | ?????????????????# +????????????# | | ?????????????????# ###########????????????+ | | ?????????????????# #! #?????????????# | | ?????????????????# # #?????????????# | | ?????????????????# # #?????????????# | | ?????????????????# # #?????????????? ? | | ?????????????????# # #?????????????????? | | ?????????????????# # ??????????????????? | | ?????????????????# # ?????????????????? | | ?????????????????# ###+##?????????????????# | | ?????????????????# ## #?????????????????# | | ?????????????????# #?????????######### | | ?????????????????#### #???????? # | | ????????????????????## ##????????/// # | +----------------------------------------------------+ Best States ------------- Heat Dissipation 52 Energy Generation 29 Energy Capacity 325 Matter Stores 300 Matter Capacity 300 Sight Range 18 Terrain Scan Range 16 Terrain Scan Density 210 ECM Strength 2 Jamming Range 12 Power Amplification 20 Additional Mass Support 9 Resistance: KI 20 Resistance: TH 30 Resistance: EX 50 Utility Shielding 66 Melee Speed Boost 20 Evasion (%) 73 Recoil Reduction 3 Offensive Hacking 24 Defensive Hacking 10 Item Schematics ----------------- Combat Drone Bay | -6/Data Miner | Free Lgt. Regenerative Plating | -6/Data Miner | Free Enh. Armored Leg | -6/Data Miner | Free Imp. Matter Compressor | -6/Data Miner | Free Enh. Coil Gun | -6/Data Miner | Free Imp. Antigrav System | -6/Data Miner | Free Adv. Coolant Injector | -6/Data Miner | Free Phase Gun | -6/Data Miner | Free Railgun | -6/Data Miner | Free Cmb. Antigrav System | -6/Data Miner | Free Q-thruster | -3/Research | Hacked Robot Schematics ------------------ Y-64 Sentinel | -6/Data Miner | Free A-15 Conveyor | -6/Data Miner | Free B-60 Warrior | -6/Data Miner | Free Fabricated ------------ Nothing Alien Tech Used ----------------- Transdimensional Reconstructor Achievements -------------- Alien Tech Cya! GoHome() Nope Subspace Traveler The Oracle True Hacker Unlikely Earthworm Challenges ------------ None Game ------ Seed DisruptorRainbowWand Manual? 0 Play Time 01:28:25 Cumulative 13.2 hours Start 2024.12.08 @ 02:02:04 End 2024.12.08 @ 03:28:31 Sessions 1 Manual Loads 0 Difficulty Rogue Special Mode None Game No. 23 Rogue 23 Adventurer 0 Explorer 0 Win Type - Total 0 Types 0/0/0/0/0/0/0/0/0 Lore% 13 Gallery% 22 Achievement% 21 Wizard Run 0 Options --------- Layout 1 ASCII 0 Keyboard 0 Movement Mouse Keybinds 0 Fullscreen 1 Font 24/Smallcaps Map View 50x35 Zoom Use 0% Tactical HUD 1 Map Filters NONE Filters NONE Steam 1 RUN: 6f03bb1b-ef9c-45d8-a17f-eb236e25d1fc